[Event "Live Chess"]
[Site "Chess.com"]
[Date "2023.05.20"]
[Round "-"]
[White "Shepherds_Pie"]
[Black "JoeyCage"]
[Result "0-1"]
[WhiteElo "1921"]
[BlackElo "2320"]
[TimeControl "300"]
[EndTime "15:49:03 PDT"]
[Termination "JoeyCage won by resignation"]

1. c4 {[%clk 0:04:51.1]} 1... e6 {[%clk 0:04:57.6]} 2. Nc3 {[%clk 0:04:49.6]}
2... d5 {[%clk 0:04:56.7]} 3. d4 {[%clk 0:04:48.5]} 3... c6 {[%clk 0:04:54.7]}
4. Nf3 {[%clk 0:04:47.2]} 4... Nd7 {[%clk 0:04:53.3]} 5. g3 {[%clk 0:04:44.6]}
5... f5 {[%clk 0:04:51]} 6. Bg2 {[%clk 0:04:43.1]} 6... Ngf6 {[%clk 0:04:49.8]}
7. b3 {[%clk 0:04:40.9]} 7... Be7 {[%clk 0:04:48.7]} 8. O-O {[%clk 0:04:39.5]}
8... O-O {[%clk 0:04:48.1]} 9. Ne1 {[%clk 0:04:38.6]} 9... Ne4 {[%clk
0:04:46.7]} 10. Bb2 {[%clk 0:04:36.6]} 10... Nxc3 {[%clk 0:04:45.2]} 11. Bxc3
{[%clk 0:04:35]} 11... b5 {[%clk 0:04:42.1]} 12. Nd3 {[%clk 0:04:31.8]} 12... a5
{[%clk 0:04:38.6]} 13. cxb5 {[%clk 0:04:29.1]} 13... cxb5 {[%clk 0:04:37.2]} 14.
Bd2 {[%clk 0:04:26.8]} 14... Qb6 {[%clk 0:04:34.6]} 15. Nf4 {[%clk 0:04:20.5]}
15... g5 {[%clk 0:04:22.4]} 16. Nd3 {[%clk 0:04:10.9]} 16... Qxd4 {[%clk
0:04:19]} 17. Rc1 {[%clk 0:04:08.9]} 17... Qb6 {[%clk 0:04:11.4]} 18. Be3 {[%clk
0:03:56.8]} 18... Qd6 {[%clk 0:03:59.7]} 19. Nc5 {[%clk 0:03:50.6]} 19... Nxc5
{[%clk 0:03:55.8]} 20. Bxc5 {[%clk 0:03:49]} 20... Qd7 {[%clk 0:03:54.5]} 21.
Qd4 {[%clk 0:03:44.3]} 21... Bb7 {[%clk 0:03:44.8]} 22. e3 {[%clk 0:03:40.2]}
22... Rac8 {[%clk 0:03:42.1]} 23. Bxe7 {[%clk 0:03:38.4]} 23... Qxe7 {[%clk
0:03:39.1]} 24. Qb6 {[%clk 0:03:30.1]} 24... Rxc1 {[%clk 0:03:26.1]} 25. Rxc1
{[%clk 0:03:28.1]} 25... Rc8 {[%clk 0:03:25]} 26. Rxc8+ {[%clk 0:03:24.3]} 26...
Bxc8 {[%clk 0:03:23.9]} 27. Qxa5 {[%clk 0:03:19.6]} 27... Bd7 {[%clk 0:03:15.7]}
28. Qc7 {[%clk 0:03:15.6]} 28... Qe8 {[%clk 0:03:12.1]} 29. Bf1 {[%clk
0:03:14.3]} 29... h6 {[%clk 0:03:10.1]} 30. Qe5 {[%clk 0:03:08.1]} 30... Kf7
{[%clk 0:03:04.8]} 31. a3 {[%clk 0:03:02.3]} 31... Qc8 {[%clk 0:03:00.7]} 32.
Kg2 {[%clk 0:02:57.9]} 32... Bc6 {[%clk 0:02:53.2]} 33. f3 {[%clk 0:02:52.3]}
33... Kg6 {[%clk 0:02:36.7]} 34. Qc3 {[%clk 0:02:46.9]} 34... Qb7 {[%clk
0:02:34.2]} 35. Be2 {[%clk 0:02:43.7]} 35... h5 {[%clk 0:02:31.1]} 36. b4 {[%clk
0:02:40.5]} 36... g4 {[%clk 0:02:29.2]} 37. Kf2 {[%clk 0:02:38.2]} 37... d4
{[%clk 0:02:17.2]} 38. Qxd4 {[%clk 0:02:36.9]} 38... Bxf3 {[%clk 0:02:15.6]} 39.
Qh8 {[%clk 0:02:24.4]} 39... Bxe2 {[%clk 0:02:13.3]} 40. Qg8+ {[%clk 0:02:21.7]}
40... Kf6 {[%clk 0:02:03.2]} 41. Qd8+ {[%clk 0:02:12.5]} 41... Kf7 {[%clk
0:01:59.5]} 42. Kxe2 {[%clk 0:02:05]} 42... Qf3+ {[%clk 0:01:56.6]} 43. Kd2
{[%clk 0:02:03]} 43... Qf2+ {[%clk 0:01:52.1]} 44. Kd3 {[%clk 0:02:01.5]} 44...
Qf1+ {[%clk 0:01:48.7]} 45. Kd2 {[%clk 0:01:59.9]} 45... Qg2+ {[%clk 0:01:42.3]}
46. Kc3 {[%clk 0:01:55.9]} 46... Qc6+ {[%clk 0:01:39.4]} 47. Kb3 {[%clk
0:01:49.9]} 47... Qc4+ {[%clk 0:01:37.4]} 48. Kb2 {[%clk 0:01:48.9]} 48... Qe2+
{[%clk 0:01:35.4]} 49. Kb1 {[%clk 0:01:47.3]} 49... Qf1+ {[%clk 0:01:30.4]} 50.
Kb2 {[%clk 0:01:45.8]} 50... Qf2+ {[%clk 0:01:29.4]} 51. Kb1 {[%clk 0:01:43.9]}
51... Qg1+ {[%clk 0:01:28.4]} 52. Kb2 {[%clk 0:01:41.8]} 52... Qxh2+ {[%clk
0:01:28]} 53. Kb1 {[%clk 0:01:40.8]} 53... Qg1+ {[%clk 0:01:26]} 54. Kb2 {[%clk
0:01:39.5]} 54... Qf2+ {[%clk 0:01:24.9]} 55. Kb1 {[%clk 0:01:38]} 55... Qf1+
{[%clk 0:01:23.9]} 56. Kb2 {[%clk 0:01:36.9]} 56... Qe2+ {[%clk 0:01:22.6]} 57.
Kb1 {[%clk 0:01:35.8]} 57... Qf1+ {[%clk 0:01:16]} 58. Kb2 {[%clk 0:01:33.9]}
58... Qf2+ {[%clk 0:01:14.4]} 59. Kb1 {[%clk 0:01:32.9]} 59... Qxe3 {[%clk
0:01:13.3]} 60. Qd7+ {[%clk 0:01:30.7]} 60... Kf6 {[%clk 0:01:11.7]} 61. Qd8+
{[%clk 0:01:27.8]} 61... Ke5 {[%clk 0:01:10.1]} 62. Qc7+ {[%clk 0:01:22.5]}
62... Ke4 {[%clk 0:01:08.5]} 63. Qc6+ {[%clk 0:01:21.4]} 63... Kd4 {[%clk
0:01:04.6]} 64. Qc5+ {[%clk 0:01:19.3]} 64... Ke4 {[%clk 0:01:01.9]} 65. Qc6+
{[%clk 0:01:16.5]} 65... Kd3 {[%clk 0:00:59.5]} 66. Qxb5+ {[%clk 0:01:15.2]}
66... Kd2 {[%clk 0:00:58.4]} 67. Qf1 {[%clk 0:01:06.5]} 67... Qxg3 {[%clk
0:00:53.7]} 68. Qc1+ {[%clk 0:01:04.3]} 68... Ke2 {[%clk 0:00:52.7]} 69. Qc2+
{[%clk 0:01:02.7]} 69... Kf3 {[%clk 0:00:51.7]} 70. Qd3+ {[%clk 0:01:00.3]}
70... Kg2 {[%clk 0:00:50.7]} 71. Qe2+ {[%clk 0:00:59]} 71... Qf2 {[%clk
0:00:47.8]} 72. Qxe6 {[%clk 0:00:57.6]} 72... h4 {[%clk 0:00:45.5]} 73. Qd5+
{[%clk 0:00:54.5]} 73... Kg3 {[%clk 0:00:44.2]} 74. Qe5+ {[%clk 0:00:51.3]}
74... f4 {[%clk 0:00:43]} 75. b5 {[%clk 0:00:47.9]} 75... h3 {[%clk 0:00:41]}
76. Qc3+ {[%clk 0:00:43.6]} 76... Qf3 {[%clk 0:00:38.4]} 77. Qe1+ {[%clk
0:00:41.1]} 77... Qf2 {[%clk 0:00:36.5]} 78. Qh1 {[%clk 0:00:38]} 78... h2
{[%clk 0:00:35.1]} 79. b6 {[%clk 0:00:35]} 79... Qg1+ {[%clk 0:00:32.5]} 0-1

[Event "Live Chess"]
[Site "Chess.com"]
[Date "2023.05.20"]
[Round "-"]
[White "siddu198"]
[Black "Long1968"]
[Result "0-1"]
[WhiteElo "1604"]
[BlackElo "1271"]
[TimeControl "300"]
[EndTime "15:49:08 PDT"]
[Termination "Long1968 won by resignation"]

1. b3 {[%clk 0:04:58.5]} 1... d5 {[%clk 0:04:56.6]} 2. Bb2 {[%clk 0:04:58.4]}
2... d4 {[%clk 0:04:54.5]} 3. e3 {[%clk 0:04:57]} 3... c5 {[%clk 0:04:49.9]} 4.
exd4 {[%clk 0:04:56]} 4... cxd4 {[%clk 0:04:47.8]} 5. Qe2 {[%clk 0:04:55.6]}
5... Nc6 {[%clk 0:04:44.2]} 6. Qb5 {[%clk 0:04:53.7]} 6... Bd7 {[%clk
0:04:39.6]} 7. Nf3 {[%clk 0:04:53]} 7... e5 {[%clk 0:04:33.1]} 8. Bc4 {[%clk
0:04:44.8]} 8... h6 {[%clk 0:04:08.4]} 9. Nxe5 {[%clk 0:04:34.8]} 9... Nxe5
{[%clk 0:04:02.3]} 10. Qxe5+ {[%clk 0:04:34.7]} 10... Be7 {[%clk 0:03:43.7]} 11.
Bxd4 {[%clk 0:04:34.6]} 11... Nf6 {[%clk 0:03:38]} 12. O-O {[%clk 0:04:16.1]}
12... O-O {[%clk 0:03:32.4]} 13. Re1 {[%clk 0:04:15.7]} 13... Re8 {[%clk
0:03:24.6]} 14. Qg3 {[%clk 0:04:14.4]} 14... Nh5 {[%clk 0:02:23.1]} 15. Qc3
{[%clk 0:04:02.5]} 15... Rc8 {[%clk 0:02:01.8]} 16. d3 {[%clk 0:03:48.9]} 16...
b5 {[%clk 0:01:49.1]} 17. g4 {[%clk 0:03:44.7]} 17... Nf6 {[%clk 0:01:39.1]} 18.
Bxf6 {[%clk 0:03:37.3]} 18... Bxf6 {[%clk 0:01:35.2]} 19. Rxe8+ {[%clk
0:03:36.8]} 19... Qxe8 {[%clk 0:01:29.2]} 20. Bxf7+ {[%clk 0:03:28.6]} 20...
Qxf7 {[%clk 0:01:22.9]} 21. d4 {[%clk 0:03:28.2]} 21... Rxc3 {[%clk 0:01:18.2]}
22. Nxc3 {[%clk 0:03:26]} 22... Bxd4 {[%clk 0:01:15.8]} 0-1

[Event "Live Chess"]
[Site "Chess.com"]
[Date "2023.05.20"]
[Round "-"]
[White "NomisY"]
[Black "domrobson"]
[Result "1-0"]
[WhiteElo "1547"]
[BlackElo "1774"]
[TimeControl "300"]
[EndTime "15:49:09 PDT"]
[Termination "NomisY won by resignation"]

1. d4 {[%clk 0:04:55.9]} 1... Nf6 {[%clk 0:04:58.9]} 2. c4 {[%clk 0:04:54.5]}
2... e6 {[%clk 0:04:58.1]} 3. Nc3 {[%clk 0:04:53.4]} 3... d5 {[%clk 0:04:57.3]}
4. cxd5 {[%clk 0:04:52.3]} 4... exd5 {[%clk 0:04:56.4]} 5. Bg5 {[%clk
0:04:51.2]} 5... Be7 {[%clk 0:04:55.6]} 6. e3 {[%clk 0:04:50.4]} 6... h6 {[%clk
0:04:55]} 7. Bh4 {[%clk 0:04:49.2]} 7... c6 {[%clk 0:04:54.5]} 8. Bd3 {[%clk
0:04:47.8]} 8... Bg4 {[%clk 0:04:52.9]} 9. f3 {[%clk 0:04:37.3]} 9... Bd7 {[%clk
0:04:49.1]} 10. Nge2 {[%clk 0:04:32.3]} 10... Na6 {[%clk 0:04:45.7]} 11. O-O
{[%clk 0:04:25.2]} 11... Nb4 {[%clk 0:04:43.4]} 12. Bb1 {[%clk 0:04:24]} 12...
O-O {[%clk 0:04:42.2]} 13. a3 {[%clk 0:04:22.8]} 13... Na6 {[%clk 0:04:40.6]}
14. b4 {[%clk 0:04:22.1]} 14... Nc7 {[%clk 0:04:38]} 15. Qd3 {[%clk 0:04:04.4]}
15... g6 {[%clk 0:04:34.5]} 16. Qd2 {[%clk 0:04:03.2]} 16... Re8 {[%clk
0:04:32.4]} 17. e4 {[%clk 0:03:49.2]} 17... Kg7 {[%clk 0:04:30.3]} 18. Bxf6+
{[%clk 0:03:08.6]} 18... Bxf6 {[%clk 0:04:28]} 19. e5 {[%clk 0:03:07.8]} 19...
Be7 {[%clk 0:04:23.3]} 20. f4 {[%clk 0:03:07]} 20... f6 {[%clk 0:04:10.2]} 21.
Ng3 {[%clk 0:02:41]} 21... fxe5 {[%clk 0:04:05.6]} 22. dxe5 {[%clk 0:02:39.7]}
22... Be6 {[%clk 0:04:02.4]} 23. Qd3 {[%clk 0:02:23.5]} 23... Bf7 {[%clk
0:03:57.5]} 24. f5 {[%clk 0:02:22.3]} 24... Bf8 {[%clk 0:03:40.1]} 25. fxg6
{[%clk 0:02:08.3]} 25... Be6 {[%clk 0:03:37.6]} 26. Nh5+ {[%clk 0:01:46.1]}
26... Kg8 {[%clk 0:03:30.6]} 27. g7 {[%clk 0:01:19.7]} 1-0

[Event "Live Chess"]
[Site "Chess.com"]
[Date "2023.05.20"]
[Round "-"]
[White "martynstanley"]
[Black "fso"]
[Result "0-1"]
[WhiteElo "1002"]
[BlackElo "2228"]
[TimeControl "300"]
[EndTime "15:49:11 PDT"]
[Termination "fso won by checkmate"]

1. d4 {[%clk 0:04:58]} 1... d5 {[%clk 0:04:58]} 2. e3 {[%clk 0:04:57.4]} 2...
Nf6 {[%clk 0:04:54.5]} 3. Bd3 {[%clk 0:04:56.5]} 3... e6 {[%clk 0:04:53.4]} 4.
c3 {[%clk 0:04:55.7]} 4... c5 {[%clk 0:04:51.9]} 5. f4 {[%clk 0:04:54.9]} 5...
Be7 {[%clk 0:04:47.7]} 6. Nf3 {[%clk 0:04:54]} 6... O-O {[%clk 0:04:47.2]} 7.
O-O {[%clk 0:04:53.2]} 7... Nbd7 {[%clk 0:04:46.4]} 8. Ne5 {[%clk 0:04:52.4]}
8... c4 {[%clk 0:04:44.2]} 9. Bc2 {[%clk 0:04:51.3]} 9... a6 {[%clk 0:04:43]}
10. Rf3 {[%clk 0:04:48.5]} 10... Ne4 {[%clk 0:04:41.5]} 11. Nd2 {[%clk
0:04:46.8]} 11... f5 {[%clk 0:04:39.7]} 12. Rh3 {[%clk 0:04:44.8]} 12... Ndf6
{[%clk 0:04:30.9]} 13. Bxe4 {[%clk 0:04:34.8]} 13... fxe4 {[%clk 0:04:26.6]} 14.
Ndf3 {[%clk 0:04:27.5]} 14... exf3 {[%clk 0:04:25.3]} 15. Nxf3 {[%clk
0:04:26.5]} 15... Ne4 {[%clk 0:04:18.1]} 16. Ne5 {[%clk 0:04:25.4]} 16... Bf6
{[%clk 0:04:11.1]} 17. Qh5 {[%clk 0:04:23.8]} 17... h6 {[%clk 0:04:04.1]} 18.
Nf3 {[%clk 0:04:20.2]} 18... Qe8 {[%clk 0:04:01.3]} 19. Qxe8 {[%clk 0:04:17.8]}
19... Rxe8 {[%clk 0:03:59.9]} 20. Nd2 {[%clk 0:04:17]} 20... Bd7 {[%clk
0:03:56]} 21. Nxe4 {[%clk 0:04:15.7]} 21... dxe4 {[%clk 0:03:55.9]} 22. Bd2
{[%clk 0:04:14.8]} 22... e5 {[%clk 0:03:54]} 23. fxe5 {[%clk 0:04:13.4]} 23...
Bxh3 {[%clk 0:03:52.3]} 24. gxh3 {[%clk 0:04:12.1]} 24... Bg5 {[%clk 0:03:50.3]}
25. Rf1 {[%clk 0:04:11.5]} 25... Rf8 {[%clk 0:03:49.2]} 26. Rxf8+ {[%clk
0:04:09.6]} 26... Rxf8 {[%clk 0:03:49.1]} 27. Kg2 {[%clk 0:04:08.6]} 27... Rf3
{[%clk 0:03:47.7]} 28. b3 {[%clk 0:04:01.9]} 28... Bxe3 {[%clk 0:03:46.6]} 29.
Bxe3 {[%clk 0:04:00.7]} 29... Rxe3 {[%clk 0:03:46.5]} 30. bxc4 {[%clk
0:03:58.4]} 30... Rxc3 {[%clk 0:03:45.5]} 31. c5 {[%clk 0:03:56.5]} 31... Rd3
{[%clk 0:03:44.5]} 32. e6 {[%clk 0:03:54.2]} 32... Rxd4 {[%clk 0:03:43.3]} 33.
e7 {[%clk 0:03:53.4]} 33... Kf7 {[%clk 0:03:43.2]} 34. e8=Q+ {[%clk 0:03:51.4]}
34... Kxe8 {[%clk 0:03:42]} 35. Kf2 {[%clk 0:03:50.8]} 35... Rd3 {[%clk
0:03:38.5]} 36. h4 {[%clk 0:03:48.2]} 36... Kd7 {[%clk 0:03:35.3]} 37. Ke2
{[%clk 0:03:47.4]} 37... Kc6 {[%clk 0:03:34.5]} 38. h5 {[%clk 0:03:46.7]} 38...
Kxc5 {[%clk 0:03:34.4]} 39. h4 {[%clk 0:03:45.9]} 39... Kc4 {[%clk 0:03:33.2]}
40. a4 {[%clk 0:03:45.2]} 40... Kd4 {[%clk 0:03:32.8]} 41. a5 {[%clk 0:03:44.1]}
41... Ra3 {[%clk 0:03:31.5]} 42. Kd2 {[%clk 0:03:40.2]} 42... Ra2+ {[%clk
0:03:31.4]} 43. Ke1 {[%clk 0:03:38]} 43... Kd3 {[%clk 0:03:31.3]} 44. Kf1 {[%clk
0:03:36.5]} 44... e3 {[%clk 0:03:30.3]} 45. Kg1 {[%clk 0:03:34.7]} 45... e2
{[%clk 0:03:23.8]} 46. Kf2 {[%clk 0:03:33.8]} 46... Ra1 {[%clk 0:03:19.7]} 47.
Kf3 {[%clk 0:03:33]} 47... Rf1+ {[%clk 0:03:15.5]} 48. Kg4 {[%clk 0:03:32]}
48... e1=Q {[%clk 0:03:13.5]} 49. Kh3 {[%clk 0:03:27.3]} 49... Rh1+ {[%clk
0:03:09.6]} 50. Kg4 {[%clk 0:03:26.1]} 50... Rxh4+ {[%clk 0:03:00.6]} 51. Kf5
{[%clk 0:03:24.7]} 51... Qe4# {[%clk 0:02:58.7]} 0-1

[Event "Live Chess"]
[Site "Chess.com"]
[Date "2023.05.20"]
[Round "-"]
[White "raminguy"]
[Black "jagbama"]
[Result "1-0"]
[WhiteElo "1960"]
[BlackElo "1145"]
[TimeControl "300"]
[EndTime "15:49:15 PDT"]
[Termination "raminguy won by resignation"]

1. d4 {[%clk 0:04:58.4]} 1... d5 {[%clk 0:04:58.7]} 2. Nc3 {[%clk 0:04:57.7]}
2... e6 {[%clk 0:04:54.2]} 3. Bf4 {[%clk 0:04:57]} 3... c6 {[%clk 0:04:45.3]} 4.
e3 {[%clk 0:04:55.4]} 4... Nf6 {[%clk 0:04:43.8]} 5. Nf3 {[%clk 0:04:54.3]} 5...
Bb4 {[%clk 0:04:40.7]} 6. Ne5 {[%clk 0:04:54]} 6... Nbd7 {[%clk 0:04:28.2]} 7.
Bd3 {[%clk 0:04:51.9]} 7... Nxe5 {[%clk 0:04:26.9]} 8. dxe5 {[%clk 0:04:50.7]}
8... Nd7 {[%clk 0:04:11.5]} 9. Qg4 {[%clk 0:04:47.2]} 9... Qa5 {[%clk
0:03:46.5]} 10. Qxg7 {[%clk 0:04:40.4]} 10... Rf8 {[%clk 0:03:45.1]} 11. O-O
{[%clk 0:04:35]} 11... Bxc3 {[%clk 0:03:43.9]} 12. bxc3 {[%clk 0:04:33.4]} 12...
Qxc3 {[%clk 0:03:43]} 13. Qxh7 {[%clk 0:04:31.9]} 13... Nxe5 {[%clk 0:03:37.3]}
14. Bh6 {[%clk 0:04:15.4]} 14... Ng6 {[%clk 0:03:13]} 15. Bxg6 {[%clk
0:04:11.7]} 15... Rh8 {[%clk 0:03:10.2]} 16. Qxf7+ {[%clk 0:04:10]} 16... Kd8
{[%clk 0:03:07.6]} 17. Bg5+ {[%clk 0:04:06.9]} 1-0

[Event "Live Chess"]
[Site "Chess.com"]
[Date "2023.05.20"]
[Round "-"]
[White "jimwad"]
[Black "Duke_of_Bebington"]
[Result "0-1"]
[WhiteElo "1221"]
[BlackElo "1579"]
[TimeControl "300"]
[EndTime "15:49:27 PDT"]
[Termination "Duke_of_Bebington won by resignation"]

1. d4 {[%clk 0:04:59.1]} 1... d5 {[%clk 0:04:58.6]} 2. c4 {[%clk 0:04:57.8]}
2... c6 {[%clk 0:04:57.2]} 3. Nc3 {[%clk 0:04:56.2]} 3... e5 {[%clk 0:04:55.4]}
4. dxe5 {[%clk 0:04:54.9]} 4... d4 {[%clk 0:04:54.6]} 5. Ne4 {[%clk 0:04:52.9]}
5... Qa5+ {[%clk 0:04:53.6]} 6. Nd2 {[%clk 0:04:50.5]} 6... Nh6 {[%clk
0:04:51.1]} 7. h3 {[%clk 0:04:46.4]} 7... Nf5 {[%clk 0:04:36]} 8. Nf3 {[%clk
0:04:44.7]} 8... Ne3 {[%clk 0:04:22.3]} 9. fxe3 {[%clk 0:04:43.1]} 9... dxe3
{[%clk 0:04:22.2]} 10. b3 {[%clk 0:04:33.6]} 10... Bb4 {[%clk 0:04:16.5]} 11. g4
{[%clk 0:04:16.1]} 11... O-O {[%clk 0:04:09.5]} 12. Bg2 {[%clk 0:04:14.6]} 12...
Rd8 {[%clk 0:04:06.3]} 13. Kf1 {[%clk 0:04:06.8]} 13... exd2 {[%clk 0:04:04.9]}
14. Nxd2 {[%clk 0:04:04.3]} 14... Bxd2 {[%clk 0:04:01.8]} 15. Bxd2 {[%clk
0:04:01.3]} 15... Qxd2 {[%clk 0:03:57.2]} 16. Qxd2 {[%clk 0:03:59.8]} 16... Rxd2
{[%clk 0:03:56.3]} 17. Kf2 {[%clk 0:03:55.7]} 17... Be6 {[%clk 0:03:51.2]} 18.
Rad1 {[%clk 0:03:53.3]} 18... Rxd1 {[%clk 0:03:47.9]} 19. Rxd1 {[%clk
0:03:51.8]} 19... Nd7 {[%clk 0:03:47.3]} 20. e4 {[%clk 0:03:45.7]} 20... Nxe5
{[%clk 0:03:39.2]} 21. Bf3 {[%clk 0:03:38.1]} 21... Nxf3 {[%clk 0:03:30.1]} 22.
Kxf3 {[%clk 0:03:36.3]} 22... Kf8 {[%clk 0:03:29.7]} 23. Kf4 {[%clk 0:03:30.8]}
23... Ke7 {[%clk 0:03:27.8]} 24. h4 {[%clk 0:03:29.5]} 24... Rd8 {[%clk
0:03:26.6]} 25. Rxd8 {[%clk 0:03:24.9]} 25... Kxd8 {[%clk 0:03:26.5]} 26. g5
{[%clk 0:03:22.4]} 26... Ke7 {[%clk 0:03:17.8]} 27. e5 {[%clk 0:03:18.5]} 27...
f6 {[%clk 0:03:14]} 28. exf6+ {[%clk 0:03:14.7]} 28... gxf6 {[%clk 0:03:13.9]}
29. gxf6+ {[%clk 0:03:13.5]} 29... Kxf6 {[%clk 0:03:13.4]} 30. a3 {[%clk
0:03:09.1]} 30... Bf5 {[%clk 0:03:11.2]} 31. b4 {[%clk 0:03:06]} 31... Bc2
{[%clk 0:03:10.2]} 32. c5 {[%clk 0:03:04.9]} 32... Bb3 {[%clk 0:03:09.2]} 33.
Ke4 {[%clk 0:02:58.8]} 33... Kg6 {[%clk 0:03:07.7]} 34. Kf4 {[%clk 0:02:57.6]}
34... Kh5 {[%clk 0:03:05.8]} 35. Kg3 {[%clk 0:02:56.4]} 35... Bd1 {[%clk
0:03:03.4]} 36. Kh3 {[%clk 0:02:54.5]} 36... Kg6 {[%clk 0:02:59.9]} 37. Kg3
{[%clk 0:02:52.1]} 37... Kf5 {[%clk 0:02:59.3]} 38. h5 {[%clk 0:02:38.4]} 38...
Bxh5 {[%clk 0:02:56.9]} 39. Kh4 {[%clk 0:02:36.9]} 39... Bg6 {[%clk 0:02:55.9]}
40. Kg3 {[%clk 0:02:35.6]} 40... Ke4 {[%clk 0:02:55.3]} 41. Kg4 {[%clk 0:02:34]}
41... Kd3 {[%clk 0:02:54.4]} 42. Kf4 {[%clk 0:02:33.2]} 42... Kc3 {[%clk
0:02:53.9]} 43. Ke5 {[%clk 0:02:32.5]} 43... Kb3 {[%clk 0:02:53.5]} 44. Kd6
{[%clk 0:02:31.7]} 44... Kxa3 {[%clk 0:02:52.7]} 45. Kc7 {[%clk 0:02:30.8]}
45... Kxb4 {[%clk 0:02:52.3]} 46. Kxb7 {[%clk 0:02:29.8]} 46... Kxc5 {[%clk
0:02:51.9]} 47. Kxa7 {[%clk 0:02:28.7]} 47... Kb5 {[%clk 0:02:51.5]} 0-1

[Event "Live Chess"]
[Site "Chess.com"]
[Date "2023.05.20"]
[Round "-"]
[White "CeladonFish"]
[Black "wadsy27"]
[Result "0-1"]
[WhiteElo "1136"]
[BlackElo "2564"]
[TimeControl "300"]
[EndTime "15:49:37 PDT"]
[Termination "wadsy27 won by checkmate"]

1. d4 {[%clk 0:04:58.6]} 1... d5 {[%clk 0:04:58.8]} 2. c4 {[%clk 0:04:57.4]}
2... c6 {[%clk 0:04:57.6]} 3. Nc3 {[%clk 0:04:57]} 3... Nf6 {[%clk 0:04:46.3]}
4. Bf4 {[%clk 0:04:54.5]} 4... dxc4 {[%clk 0:04:44.9]} 5. e3 {[%clk 0:04:53.5]}
5... b5 {[%clk 0:04:43.9]} 6. a4 {[%clk 0:04:51.6]} 6... b4 {[%clk 0:04:43.1]}
7. Na2 {[%clk 0:04:45.7]} 7... e6 {[%clk 0:04:40.2]} 8. Bxc4 {[%clk 0:04:43.3]}
8... Ba6 {[%clk 0:04:39.2]} 9. Bxa6 {[%clk 0:04:40.6]} 9... Nxa6 {[%clk
0:04:39.1]} 10. Qd3 {[%clk 0:04:37.2]} 10... Qa5 {[%clk 0:04:33.7]} 11. Nc1
{[%clk 0:04:00.8]} 11... b3+ {[%clk 0:04:28.8]} 12. Ke2 {[%clk 0:03:59.7]} 12...
Nb4 {[%clk 0:04:23.8]} 13. Qc4 {[%clk 0:03:49.7]} 13... Nfd5 {[%clk 0:04:12.4]}
14. Nd3 {[%clk 0:03:41.1]} 14... Be7 {[%clk 0:03:46.6]} 15. Nxb4 {[%clk
0:03:36.6]} 15... Nxb4 {[%clk 0:03:44.9]} 16. Nf3 {[%clk 0:03:29.9]} 16... O-O
{[%clk 0:03:43.8]} 17. Ne5 {[%clk 0:03:23.3]} 17... Rac8 {[%clk 0:03:39]} 18.
Nd7 {[%clk 0:03:16.7]} 18... Rfd8 {[%clk 0:03:34.9]} 19. Nc5 {[%clk 0:03:07]}
19... Bxc5 {[%clk 0:03:33.2]} 20. Qxc5 {[%clk 0:03:03.8]} 20... Qxc5 {[%clk
0:03:30.2]} 21. dxc5 {[%clk 0:03:02.1]} 21... Rd5 {[%clk 0:03:24]} 22. Bd6
{[%clk 0:02:57]} 22... f5 {[%clk 0:03:11.5]} 23. Rhd1 {[%clk 0:02:54]} 23... Kf7
{[%clk 0:03:03.1]} 24. Rxd5 {[%clk 0:02:51.9]} 24... cxd5 {[%clk 0:02:45.6]} 25.
Ra3 {[%clk 0:02:49.9]} 25... a5 {[%clk 0:02:44]} 26. Rxb3 {[%clk 0:02:48.2]}
26... Ke8 {[%clk 0:02:43.2]} 27. f4 {[%clk 0:02:44]} 27... Kd7 {[%clk
0:02:41.8]} 28. h3 {[%clk 0:02:31.5]} 28... Kc6 {[%clk 0:02:37.7]} 29. Kd2
{[%clk 0:02:26.5]} 29... Rg8 {[%clk 0:02:34.3]} 30. g3 {[%clk 0:02:22.6]} 30...
g5 {[%clk 0:02:32.1]} 31. Ke2 {[%clk 0:02:18.9]} 31... gxf4 {[%clk 0:02:30.6]}
32. gxf4 {[%clk 0:02:14.1]} 32... Rg2+ {[%clk 0:02:27.4]} 33. Kf3 {[%clk
0:02:13.6]} 33... Rc2 {[%clk 0:02:17.9]} 34. h4 {[%clk 0:02:01.5]} 34... h5
{[%clk 0:02:16.1]} 35. Kg3 {[%clk 0:01:59.5]} 35... Rc1 {[%clk 0:02:13.2]} 36.
Kf3 {[%clk 0:01:57.6]} 36... Ra1 {[%clk 0:02:12.1]} 37. Ra3 {[%clk 0:01:51]}
37... Rxa3 {[%clk 0:02:08.9]} 38. bxa3 {[%clk 0:01:50.1]} 38... Nd3 {[%clk
0:02:06.5]} 39. Ke2 {[%clk 0:01:48.7]} 39... Nxc5 {[%clk 0:02:05.4]} 40. Bxc5
{[%clk 0:01:47.3]} 40... Kxc5 {[%clk 0:02:04.3]} 41. Kd3 {[%clk 0:01:46.5]}
41... d4 {[%clk 0:02:02.4]} 42. exd4+ {[%clk 0:01:45.2]} 42... Kd5 {[%clk
0:02:02]} 43. Kc3 {[%clk 0:01:44]} 43... Ke4 {[%clk 0:02:01.3]} 44. Kc4 {[%clk
0:01:40.8]} 44... Kxf4 {[%clk 0:02:00.5]} 45. Kb5 {[%clk 0:01:40.3]} 45... Ke3
{[%clk 0:01:57]} 46. Kxa5 {[%clk 0:01:39.7]} 46... f4 {[%clk 0:01:56.5]} 47. Kb5
{[%clk 0:01:39.2]} 47... f3 {[%clk 0:01:56.1]} 48. a5 {[%clk 0:01:38.3]} 48...
f2 {[%clk 0:01:55.8]} 49. a6 {[%clk 0:01:38.1]} 49... f1=Q+ {[%clk 0:01:55.2]}
50. Kb6 {[%clk 0:01:37]} 50... Kxd4 {[%clk 0:01:53.6]} 51. a7 {[%clk 0:01:36.9]}
51... Qf3 {[%clk 0:01:52.4]} 52. Ka6 {[%clk 0:01:34.3]} 52... Qa8 {[%clk
0:01:51.8]} 53. a4 {[%clk 0:01:33.2]} 53... e5 {[%clk 0:01:50.2]} 54. a5 {[%clk
0:01:32.6]} 54... e4 {[%clk 0:01:49.3]} 55. Kb6 {[%clk 0:01:32.2]} 55... e3
{[%clk 0:01:48.5]} 56. Ka6 {[%clk 0:01:30.5]} 56... e2 {[%clk 0:01:47.6]} 57.
Kb6 {[%clk 0:01:29.5]} 57... e1=Q {[%clk 0:01:46.3]} 58. Ka6 {[%clk 0:01:28.7]}
58... Qe6+ {[%clk 0:01:45.1]} 59. Kb5 {[%clk 0:01:27.6]} 59... Qac6+ {[%clk
0:01:44.3]} 60. Kb4 {[%clk 0:01:26.4]} 60... Qec4+ {[%clk 0:01:40.8]} 61. Ka3
{[%clk 0:01:25.4]} 61... Q6a4+ {[%clk 0:01:38.3]} 62. Kb2 {[%clk 0:01:24.9]}
62... Qcc2# {[%clk 0:01:37.1]} 0-1